bitfinex-derivatives/quotes_SOLF0:USTF0_20251020
["timestamp","ask_amount","ask_price","bid_price","bid_amount"]
[1760997242734,2.66,189.19,189.17,2.87]
[1760997243932,4.56390462,189.24,189.17,4.7567]
[1760997244128,2.66,189.22,189.18,2.87]
[1760997244328,2.66,189.2,189.18,2.87]
[1760997244529,7.22390462,189.2,189.18,2.87]
[1760997244734,2.66,189.2,189.18,2.87]
[1760997245635,7.22390462,189.2,189.18,2.87]
[1760997245833,2.66,189.2,189.18,2.87]
[1760997249544,4.56261953,189.23,189.18,2.87]
[1760997249545,2.66,189.21,189.19,2.87]
[1760997250345,2.66,189.21,189.18,4.7565]
[1760997250547,2.66,189.2,189.18,4.7565]
[1760997250860,2.66,189.2,189.16,7.627]
[1760997251151,2.66,189.2,189.17,2.87]
[1760997254351,2.66,189.2,189.17,7.6268]
[1760997254646,2.66,189.2,189.17,9.65799446]
[1760997255244,2.66,189.21,189.19,2.75]
[1760997256751,2.66,189.21,189.19,7.5063]
[1760997257751,2.66,189.21,189.19,9.53749446]
[1760997258950,4.55894025,189.24,189.19,6.78749446]
[1760997259154,2.66,189.23,189.2,2.75]
[1760997265753,4.55894025,189.24,189.2,7.506]
[1760997265961,6.46815092,189.29,189.19,2.03119446]
[1760997265962,2.66,189.26,189.21,2.75]
[1760997266453,2.66,189.25,189.21,2.75]
[1760997266654,2.66,189.24,189.19,9.53729446]
[1760997267249,2.66,189.24,189.2,2.75]
[1760997268764,7.06388703,189.24,189.2,2.75]
[1760997268968,2.68,189.23,189.2,2.75]
[1760997276272,7.08388703,189.23,189.2,2.75]
[1760997276471,2.68,189.23,189.2,2.75]
[1760997276774,7.08388703,189.23,189.2,2.75]
[1760997276966,2.68,189.23,189.2,2.75]
[1760997280284,2.68,189.23,189.19,2.03119446]
[1760997280583,2.68,189.23,189.19,4.68119446]
[1760997280782,2.68,189.23,189.2,2.65]
[1760997285291,2.68,189.22,189.2,2.65]
[1760997291492,2.68,189.22,189.19,6.78749446]
[1760997291894,2.68,189.21,189.19,6.78749446]
[1760997292092,2.68,189.2,189.17,2.03119446]
[1760997296693,2.68,189.2,189.17,4.68119446]
[1760997297201,2.68,189.2,189.16,2.03119446]
[1760997298298,2.68,189.2,189.16,4.69119446]
[1760997298694,2.68,189.2,189.16,2.66]
[1760997300999,2.68,189.2,189.16,2.66]
[1760997301997,2.68,189.2,189.14,2.66]
[1760997303096,2.68,189.2,189.14,7.4174]
[1760997307611,2.68,189.2,189.15,7.4172]
[1760997309505,2.68,189.2,189.16,2.66]
[1760997311815,2.68,189.2,189.14,2.66]
[1760997312905,2.68,189.2,189.15,4.7572]
[1760997313206,2.68,189.2,189.15,7.4172]
[1760997313406,2.68,189.2,189.16,2.66]
[1760997315313,2.78,189.19,189.16,2.66]
[1760997319218,2.78,189.19,189.15,4.7572]
[1760997320116,2.78,189.19,189.15,7.5872]
[1760997322116,2.78,189.19,189.15,4.7572]
[1760997322317,2.78,189.19,189.16,2.83]
[1760997327520,2.9,189.18,189.13,7.4277]
[1760997328316,2.9,189.16,189.13,7.4277]
[1760997330425,2.9,189.15,189.12,2.67]
[1760997331721,2.9,189.15,189.11,4.7582]
[1760997331918,2.9,189.15,189.11,7.4282]
[1760997332336,2.9,189.15,189.11,4.7582]
[1760997332522,4.84864918,189.21,189.05,2.67]
[1760997332523,2.9,189.14,189.05,2.67]
[1760997333123,2.9,189.12,189.05,2.67]
[1760997333627,7.6582,189.12,189.05,2.67]
[1760997333821,2.9,189.11,189.05,2.67]
[1760997334924,2.9,189.12,189.02,7.4306]
[1760997335227,2.9,189.09,188.99,9.25631134]
[1760997335528,2.9,189.05,188.99,2.67]
[1760997336529,2.9,189.04,188.99,2.67]
[1760997338536,2.9,189.04,188.91,34.32]
[1760997338537,2.9,189.02,188.95,2.67]
[1760997339031,7.6608,189.02,188.95,2.67]
[1760997339236,2.9,189.01,188.95,2.67]
[1760997340019,2.9,189.01,188.92,3.17423194]
[1760997340332,16.11053379,189.2,188.93,2.67]
[1760997340333,2.9,189.08,188.93,2.67]
[1760997340932,4.7597,189.06,188.98,4.7615]
[1760997341132,2.9,189.05,188.98,7.4315]
[1760997342030,2.9,189.05,188.98,4.7615]
[1760997345530,2.9,189.05,188.98,7.4315]
[1760997352739,2.9,189.05,188.99,2.67]
[1760997353039,2.9,189.05,188.99,7.4312]
[1760997353240,2.9,189.05,188.99,2.67]
[1760997355038,2.9,189.05,188.99,7.4313]
[1760997356539,2.9,189.05,188.99,4.7613]
[1760997356738,2.9,189.05,189.0,2.67]
[1760997360843,4.7592,189.08,189.01,2.81]
[1760997361035,2.03527649,189.07,189.01,2.81]
[1760997361234,4.81527649,189.07,189.01,2.81]
[1760997361439,2.78,189.06,188.91,2.81]
[1760997361638,2.78,189.06,188.98,2.81]
[1760997362937,2.78,189.06,189.02,4.7605]
[1760997363137,2.78,189.06,189.03,2.81]
[1760997364637,2.78,189.06,189.0,7.571]
[1760997364834,2.78,189.04,189.0,7.571]
[1760997365039,2.78,189.04,189.01,2.81]
[1760997365244,2.78,189.04,189.0,4.761]
[1760997365543,2.78,189.04,189.0,7.571]
[1760997367048,2.78,189.04,189.01,2.81]
[1760997370447,2.78,189.04,189.0,7.571]
[1760997370755,2.78,189.04,188.98,7.5716]
[1760997371946,4.7602,189.04,188.98,7.5716]
[1760997372147,2.78,189.03,188.98,7.5716]
[1760997373639,2.78,189.03,188.99,7.5713]
[1760997374045,2.78,189.03,188.99,4.7613]
[1760997376351,2.78,189.03,188.99,7.5213]
[1760997381849,2.78,189.03,189.0,2.76]
[1760997383449,2.65,189.02,188.99,2.76]
[1760997383647,2.65,189.02,188.97,4.7617]
[1760997383648,2.03527649,189.02,188.97,4.7617]
[1760997383854,2.65,188.98,188.94,2.76]
[1760997384044,4.7618,188.98,188.94,2.76]
[1760997384246,2.65,188.96,188.91,2.76]
[1760997384445,2.65,188.96,188.87,11.9147435]
[1760997384446,2.65,188.96,188.89,6.58631134]
[1760997384648,2.65,188.93,188.88,2.76]
[1760997385349,2.65,188.92,188.88,2.76]
[1760997389846,2.79,188.95,188.89,2.8]
[1760997390453,2.79,188.95,188.91,2.8]
[1760997391958,2.79,188.98,188.93,2.8]
[1760997392564,2.03527649,189.0,188.9,2.8]
[1760997392757,4.82527649,189.0,188.9,2.8]
[1760997393966,4.82527649,189.0,188.94,4.7625]
[1760997394166,4.82527649,189.0,188.94,7.5625]
[1760997395568,2.79,188.99,188.95,2.8]
[1760997397669,7.5517,188.98,188.92,2.8]
[1760997397870,2.79,188.96,188.92,2.8]
[1760997401174,4.7622,188.96,188.92,2.8]
[1760997401476,2.79,188.95,188.92,2.8]
[1760997403583,2.79,188.95,188.9,4.7635]
[1760997404186,2.79,188.95,188.9,7.5635]
[1760997404386,2.79,188.95,188.9,4.7635]
[1760997404584,2.79,188.95,188.91,2.8]
[1760997409786,2.79,188.94,188.91,2.8]
[1760997410584,2.79,188.94,188.9,4.7635]
[1760997410787,2.79,188.94,188.9,7.5635]
[1760997410981,2.79,188.94,188.91,2.8]
[1760997411886,2.03527649,188.95,188.91,2.8]
[1760997412182,2.79,188.96,188.88,2.03527649]
[1760997412483,2.79,188.96,188.89,2.8]
[1760997413980,2.79,188.96,188.93,2.8]
[1760997414788,2.79,188.97,188.93,2.8]
[1760997414983,4.7618,188.98,188.93,2.8]
[1760997415184,2.79,188.98,188.94,2.8]
[1760997418584,4.7618,188.98,188.94,2.71]
[1760997418781,2.89,188.97,188.94,2.71]
[1760997426587,2.89,188.97,188.92,7.473]
[1760997426992,2.89,188.97,188.93,2.71]
[1760997431996,7.652,188.97,188.93,2.71]
[1760997432192,6.07290834,188.98,188.91,2.71]
[1760997432394,2.89,188.97,188.91,2.71]
[1760997434102,2.89,188.95,188.91,2.71]
[1760997435299,7.6525,188.95,188.91,2.71]
[1760997435505,2.65,188.94,188.91,2.71]
[1760997436898,2.65,188.94,188.85,6.58631134]
[1760997437106,2.65,188.88,188.76,2.76]
[1760997437600,3.81130599,188.87,188.77,2.76]
[1760997437802,6.46130599,188.86,188.77,2.76]
[1760997438101,2.65,188.86,188.77,2.76]
[1760997438405,7.4148,188.86,188.77,7.5267]
[1760997438595,3.81130599,188.85,188.78,2.76]
[1760997438800,2.65,188.84,188.78,2.76]
[1760997440106,2.65,188.82,188.78,2.76]
[1760997440303,2.65,188.82,188.73,2.76]
[1760997442007,7.4157,188.82,188.75,2.76]
[1760997443011,2.65,188.81,188.75,2.76]
[1760997443208,2.65,188.81,188.76,2.76]
[1760997445317,2.65,188.81,188.75,7.5272]
[1760997445514,2.65,188.81,188.76,2.76]
[1760997449410,4.7657,188.82,188.76,2.76]
[1760997449812,7.5652,188.84,188.77,2.65]
[1760997453018,7.5655,188.83,188.78,2.65]
[1760997455321,2.8,188.82,188.78,2.65]
[1760997457432,2.8,188.81,188.78,2.65]
[1760997457630,4.7655,188.83,188.78,2.65]
[1760997457925,2.8,188.82,188.78,2.65]
[1760997459525,4.7655,188.83,188.78,2.65]
[1760997459825,7.5655,188.83,188.78,2.65]
[1760997460027,2.8,188.82,188.78,2.65]
[1760997467524,2.8,188.82,188.76,4.767]
[1760997467920,2.8,188.82,188.77,2.65]
[1760997470934,4.7655,188.83,188.77,7.4168]
[1760997471131,4.7655,188.83,188.78,2.65]
[1760997471435,2.8,188.82,188.78,2.65]
[1760997479336,2.8,188.82,188.78,2.81]
[1760997482240,3.83135429,188.81,188.78,2.81]
[1760997482545,2.8,188.82,188.78,2.81]
[1760997482739,3.83192891,188.81,188.78,2.81]
[1760997482942,2.8,188.82,188.78,2.81]
[1760997483139,6.50193021,188.81,188.78,2.81]
[1760997483339,2.67,188.81,188.78,2.81]
[1760997485837,2.67,188.81,188.74,2.81]
[1760997486040,2.67,188.79,188.76,4.7671]
[1760997487043,2.67,188.79,188.76,2.81]
[1760997490637,2.67,188.8,188.76,2.81]
[1760997491450,7.4356,188.83,188.77,2.81]
[1760997491749,6.50046979,188.82,188.77,2.81]
[1760997491942,2.67,188.82,188.77,2.81]
[1760997492548,4.7656,188.83,188.77,4.7669]
[1760997492748,3.82975358,188.82,188.78,2.81]
[1760997492944,2.67,188.82,188.78,2.81]
[1760997493541,2.67,188.82,188.79,2.81]
[1760997494138,2.03994276,188.85,188.79,2.81]
[1760997494348,6.49996216,188.84,188.79,2.81]
[1760997494646,3.82996216,188.83,188.8,2.81]
[1760997494842,2.67,188.84,188.8,2.81]
[1760997497752,9.52494276,188.85,188.8,2.81]
[1760997497950,3.82786968,188.84,188.8,2.81]
[1760997498147,6.80494276,188.85,188.8,2.81]
[1760997498348,6.54780682,188.84,188.8,2.81]
[1760997498552,2.72,188.84,188.8,2.81]
[1760997507455,3.82917699,188.83,188.8,2.81]
[1760997507759,2.74,188.83,188.8,2.81]
[1760997514172,2.74,188.85,188.77,2.83]
[1760997514386,2.74,188.85,188.76,2.03994276]
[1760997514387,3.83824767,188.84,188.79,2.83]
[1760997514569,2.74,188.87,188.79,2.83]
[1760997514769,3.83827303,188.86,188.79,2.83]
[1760997515074,3.83827303,188.85,188.79,2.83]
[1760997515276,3.83827303,188.84,188.79,2.83]
[1760997515475,2.74,188.86,188.79,2.83]
[1760997515676,3.8382225,188.85,188.79,2.83]
[1760997515878,3.8382225,188.84,188.79,2.83]
[1760997516175,2.74,188.86,188.82,2.83]
[1760997516372,3.83818923,188.85,188.82,2.83]
[1760997516568,3.83818923,188.84,188.82,2.83]
[1760997516772,2.74,188.86,188.82,2.83]
[1760997517072,3.83819,188.85,188.82,2.83]
[1760997517273,3.83819,188.84,188.82,2.83]
[1760997517572,9.54424276,188.88,188.82,2.83]
[1760997517773,2.74,188.86,188.82,2.83]
[1760997518075,3.8381087,188.85,188.82,2.83]
[1760997518383,2.74,188.86,188.82,2.83]
[1760997518679,3.83796241,188.85,188.82,2.83]
[1760997518879,2.74,188.86,188.83,2.83]
[1760997519186,3.83796372,188.85,188.83,2.83]
[1760997519375,2.74,188.86,188.83,2.83]
[1760997519576,3.83779009,188.85,188.83,2.83]
[1760997519874,2.74,188.86,188.83,2.83]
[1760997520067,3.83894924,188.85,188.83,2.83]
[1760997520272,2.74,188.86,188.83,2.83]
[1760997520473,3.83880205,188.85,188.83,2.83]
[1760997520673,2.74,188.86,188.83,2.83]
[1760997520882,3.83880074,188.85,188.83,2.83]
[1760997521082,2.74,188.86,188.83,2.83]
[1760997521389,3.83876126,188.85,188.84,4.7652]
[1760997521576,2.74,188.88,188.85,2.83]
[1760997521772,6.57904827,188.87,188.85,2.83]
[1760997521975,2.74,188.87,188.85,2.83]
[1760997527478,6.57201061,188.87,188.85,2.83]
[1760997527679,2.74,188.87,188.85,2.83]
[1760997527879,6.57201061,188.87,188.85,2.83]
[1760997528083,2.74,188.87,188.85,2.83]
[1760997528275,6.57201061,188.87,188.85,2.83]
[1760997528472,2.74,188.87,188.85,7.5948]
[1760997528676,6.57201061,188.87,188.85,7.5948]
[1760997530988,2.74,188.87,188.85,7.5948]
[1760997532087,2.74,188.87,188.83,2.83]
[1760997532288,2.03994276,188.88,188.83,2.83]
[1760997532289,2.74,188.85,188.83,2.83]
[1760997532988,2.74,188.85,188.83,7.5953]
[1760997537780,3.83514497,188.87,188.83,4.7653]
[1760997537988,2.67,188.89,188.85,2.76]
[1760997538186,3.83552692,188.88,188.85,2.76]
[1760997538382,0.17133,188.91,188.85,2.76]
[1760997538693,0.17133,188.91,188.88,2.76]
[1760997539389,0.17133,188.91,188.9,7.5236]
[1760997541090,3.82738568,188.97,188.93,2.76]
[1760997541295,6.49738568,188.97,188.93,2.76]
[1760997541496,2.67,188.97,188.93,2.76]
[1760997542999,6.49738568,189.0,188.95,2.76]
[1760997543299,2.67,188.99,188.95,2.76]
[1760997544195,2.67,188.99,188.95,7.5222]
[1760997544595,2.67,188.99,188.96,2.76]
[1760997546398,2.67,188.99,188.93,7.5228]
[1760997546698,2.67,188.99,188.94,2.76]
[1760997548095,2.67,188.99,188.95,2.76]
[1760997548493,2.67,188.99,188.91,2.76]
[1760997549998,2.67,188.99,188.92,4.763]
[1760997550200,2.67,188.99,188.93,2.76]
[1760997551309,2.67,188.99,188.94,2.76]
[1760997555500,2.67,188.99,188.95,2.71]
[1760997560709,2.67,188.99,188.96,2.71]
[1760997562110,2.67,188.99,188.95,7.4723]
[1760997562499,2.67,188.99,188.96,2.71]
[1760997563102,2.64,189.0,188.96,2.71]
[1760997567214,2.64,188.99,188.93,7.4727]
[1760997568016,7.4015,188.99,188.93,7.4727]
[1760997568410,2.89,188.98,188.93,7.4727]
[1760997568606,2.89,189.02,188.91,4.7633]
[1760997568817,2.89,188.99,188.86,2.91]
[1760997569004,2.89,188.96,188.83,3.18223833]
[1760997569213,2.89,188.91,188.84,2.91]
[1760997570223,2.89,188.91,188.85,7.6748]
[1760997571721,2.89,188.91,188.86,4.7645]
[1760997572019,2.89,188.91,188.87,2.91]
[1760997575719,2.89,188.94,188.87,7.6742]
[1760997575923,2.89,188.94,188.88,2.91]
[1760997579626,2.89,188.97,188.88,2.91]
[1760997581021,2.89,188.97,188.93,2.91]
[1760997583930,6.69039444,188.97,188.93,2.91]
[1760997586432,3.80039444,188.97,188.93,2.91]
[1760997586630,3.80039444,188.99,188.93,2.91]
[1760997587128,6.69039444,188.99,188.93,2.91]
[1760997587328,3.80039444,188.99,188.94,2.91]
[1760997587632,3.80039444,189.0,188.94,2.91]
[1760997589133,2.89,189.01,188.95,2.91]
[1760997589434,6.69039444,189.01,188.95,2.91]
[1760997589919,6.69039444,189.01,188.96,2.91]
[1760997591433,3.80039444,189.01,188.96,2.91]
[1760997591731,2.89,189.0,188.96,2.91]
[1760997600342,2.86,189.03,188.96,2.91]
[1760997600537,2.86,189.02,188.96,2.91]
[1760997600831,2.86,189.01,188.94,2.92]
[1760997601040,2.86,189.0,188.94,2.92]
[1760997601230,2.86,189.0,188.95,7.6818]
[1760997601635,2.86,188.99,188.95,7.6818]
[1760997601837,2.86,188.99,188.95,4.7618]
[1760997602030,2.86,188.99,188.95,7.6818]
[1760997602432,2.86,188.99,188.93,7.6823]
[1760997603238,2.86,188.98,188.94,2.92]
[1760997607249,2.86,189.03,188.95,2.92]
[1760997609050,2.86,189.03,188.99,2.92]
[1760997611650,2.03624083,188.98,188.95,2.92]
[1760997612551,2.86,188.97,188.93,2.92]
[1760997613148,2.86,188.97,188.94,2.92]
[1760997615255,2.03624083,188.98,188.94,2.92]
[1760997615850,4.80624083,188.98,188.94,2.92]
[1760997618051,2.77,188.97,188.94,2.92]
[1760997620656,3.84533505,188.99,188.94,2.92]
[1760997620851,2.77,188.99,188.94,2.92]
[1760997622450,2.77,188.98,188.94,2.92]
[1760997624363,3.84981397,188.99,188.94,2.92]
[1760997624555,2.77,188.99,188.94,2.92]
[1760997626459,4.80624083,189.02,188.94,2.92]
[1760997626660,3.84999458,189.01,188.99,2.03624083]
[1760997626862,0.15258,189.09,189.01,2.83]
[1760997627157,0.15258,189.09,189.05,2.83]
[1760997627360,2.92258,189.09,189.05,2.83]
[1760997627656,3.99968813,189.09,189.05,2.83]
[1760997627860,2.77,189.08,189.05,2.83]
[1760997629856,0.15258,189.09,189.05,2.83]
[1760997632359,2.92258,189.09,189.05,2.83]
[1760997633461,2.92258,189.09,189.02,2.78]
[1760997633462,2.77,189.08,189.02,2.78]
[1760997637069,2.77,189.08,188.99,4.81624083]
[1760997637365,2.03624083,189.04,188.99,2.78]
[1760997637558,2.77,189.03,188.99,2.78]
[1760997637764,2.77,189.03,188.96,2.78]
[1760997638761,2.03624083,189.02,188.96,2.78]
[1760997639160,4.80624083,189.02,188.96,2.78]
[1760997639460,2.77,189.01,188.96,2.78]
[1760997639766,4.80624083,189.0,188.96,2.78]
[1760997639967,2.77,188.99,188.93,7.5428]
[1760997640869,2.77,188.99,188.94,2.78]
[1760997641470,2.77,189.02,188.95,2.78]
[1760997641969,2.77,189.02,188.96,2.78]
[1760997645575,9.56624083,189.05,188.97,2.78]
[1760997645873,2.77,189.05,188.98,2.78]
[1760997646271,2.77,189.05,188.99,2.78]
[1760997647073,2.77,189.05,189.01,2.78]
[1760997647774,2.77,189.09,189.02,7.5406]
[1760997647973,2.77,189.09,189.02,4.7606]
[1760997648174,2.77,189.09,189.03,2.78]
[1760997648780,2.77,189.09,189.04,2.78]
[1760997650078,2.77,189.09,189.05,2.78]
[1760997650779,2.77,189.09,189.02,7.5405]
[1760997651278,2.77,189.09,189.02,4.81624083]
[1760997652075,2.77,189.09,189.03,2.78]
[1760997653081,2.77,189.09,189.04,4.76]
[1760997653483,2.77,189.09,189.0,4.81624083]
[1760997653978,2.03624083,189.08,189.0,2.03624083]
[1760997654177,2.77,189.07,189.01,2.78]
[1760997655074,2.77,189.07,189.02,7.5405]
[1760997656790,2.77,189.07,189.03,2.78]
[1760997661193,2.77,189.07,189.03,7.5403]
[1760997661786,6.79494083,189.1,189.04,2.87]
[1760997661987,9.65494083,189.1,189.04,2.87]
[1760997662187,2.86,189.09,189.04,2.87]
[1760997664696,6.79494083,189.1,189.04,2.87]
[1760997664999,9.65494083,189.1,189.04,2.87]
[1760997665691,2.86,189.09,189.04,2.87]
[1760997672594,2.86,189.08,189.03,4.7605]
[1760997672794,2.86,189.08,189.01,7.631]
[1760997673295,2.86,189.08,189.02,4.7608]
[1760997673699,2.86,189.08,189.02,7.6308]
[1760997675100,2.86,189.08,189.03,2.87]
[1760997682200,2.86,189.08,188.94,2.63]
[1760997682201,2.8,189.04,188.94,2.63]
[1760997682809,2.8,189.01,188.94,2.63]
[1760997685299,2.8,189.0,188.9,2.63]
[1760997687208,2.8,188.98,188.9,2.63]
[1760997688007,2.64,188.97,188.9,7.3937]
[1760997688200,2.64,188.97,188.9,2.63]
[1760997688602,2.64,188.97,188.84,2.81]
[1760997689002,3.17843155,188.95,188.84,2.81]
[1760997689205,2.64,188.94,188.84,2.81]
[1760997689705,2.64,188.9,188.84,2.81]
[1760997697110,2.64,188.9,188.76,43.76]
[1760997697111,2.64,188.9,188.79,2.81]
[1760997697317,2.64,188.88,188.79,2.81]
[1760997698003,2.64,188.87,188.79,2.81]
[1760997701900,2.64,188.86,188.79,2.81]
[1760997703711,2.64,188.86,188.8,2.81]
[1760997705014,2.64,188.86,188.8,4.7662]
[1760997705217,2.64,188.86,188.81,2.81]
[1760997719527,2.64,188.86,188.71,9.5372]
[1760997719528,2.82,188.89,188.77,2.73]
[1760997719830,2.82,188.86,188.7,5.90843155]
[1760997720017,2.82,188.8,188.71,2.73]
[1760997720838,2.82,188.8,188.73,2.73]
[1760997721328,2.82,188.8,188.73,7.498]
[1760997721536,2.82,188.89,188.77,2.73]
[1760997722042,2.82,188.92,188.83,2.73]
[1760997722243,2.82,188.92,188.84,2.73]
[1760997722440,2.82,188.92,188.76,12.58]
[1760997722441,2.82,188.89,188.8,2.73]
[1760997722645,2.82,188.89,188.78,3.17843155]
[1760997722829,2.82,188.89,188.78,2.73]
[1760997723030,2.82,188.86,188.78,2.73]
[1760997723545,2.82,188.86,188.79,2.73]
[1760997724143,2.82,188.92,188.8,2.73]
[1760997724440,4.764,188.9,188.81,4.766]
[1760997724740,7.584,188.9,188.82,2.73]
[1760997724942,2.82,188.89,188.82,2.73]
[1760997726238,7.5843,188.89,188.82,2.73]
[1760997727042,2.82,188.87,188.79,4.7666]
[1760997727244,2.82,188.86,188.79,4.7666]
[1760997728340,6.64694224,188.86,188.78,2.73]
[1760997728539,6.64694224,188.85,188.78,2.73]
[1760997728745,2.82,188.85,188.78,2.73]
[1760997729048,2.82,188.83,188.75,4.76939984]
[1760997729233,2.82,188.82,188.75,4.76939984]
[1760997729940,2.82,188.86,188.8,2.73]
[1760997730149,3.83166715,188.87,188.82,2.73]
[1760997730444,2.82,188.87,188.82,2.73]
[1760997730645,3.83166715,188.88,188.83,2.03939984]
[1760997730950,3.83166715,188.89,188.84,2.73]
[1760997731151,2.82,188.9,188.84,2.73]
[1760997731443,31.94349522,188.96,188.74,62.0]
[1760997731444,3.83787686,188.92,188.86,2.73]
[1760997731644,2.82,188.9,188.83,2.03939984]
[1760997731848,2.82,188.9,188.84,2.73]
[1760997732539,4.7633,188.93,188.85,4.76939984]
[1760997732744,3.8404507,188.92,188.86,2.73]
[1760997732933,7.5833,188.93,188.86,2.73]
[1760997732934,2.82,188.93,188.86,2.73]
[1760997733134,3.84061386,188.92,188.86,2.73]
[1760997733344,3.84061386,188.91,188.86,2.73]
[1760997733550,3.84319803,188.92,188.88,2.73]
[1760997733844,3.84303494,188.95,188.88,2.73]
[1760997734046,2.03939984,188.92,188.84,2.73]
[1760997734246,6.66303494,188.91,188.84,2.73]
[1760997734545,2.82,188.89,188.79,2.03939984]
[1760997734737,2.82,188.87,188.8,2.73]
[1760997734939,2.82,188.85,188.8,2.73]
[1760997735141,3.84261512,188.84,188.76,2.03939984]
[1760997735441,2.03939984,188.86,188.77,2.66]
[1760997735641,3.84176818,188.85,188.77,2.66]
[1760997735841,3.84176818,188.84,188.77,2.66]
[1760997736041,3.84184283,188.85,188.77,2.66]
[1760997736536,3.84236706,188.87,188.8,2.03939984]
[1760997736742,4.72939984,188.9,188.81,2.66]
[1760997736942,6.53238361,188.89,188.81,2.66]
[1760997737237,6.53238361,188.88,188.81,2.66]
[1760997737438,3.84238361,188.87,188.81,2.66]
[1760997738053,3.84238361,188.87,188.81,7.426]
[1760997738252,2.69,188.88,188.81,7.426]
[1760997739447,27.96939984,188.92,188.84,2.66]
[1760997739656,3.84478911,188.91,188.84,2.66]
[1760997739850,3.84478911,188.9,188.84,2.66]
[1760997740047,3.84478911,188.91,188.84,2.66]
[1760997740249,4.72939984,188.92,188.84,2.66]
[1760997740447,3.84531177,188.91,188.84,2.66]
[1760997740647,4.72939984,188.92,188.84,2.66]
[1760997740849,4.72939984,188.92,188.85,2.66]
[1760997740850,3.84584025,188.91,188.85,2.66]
[1760997741453,2.69,188.9,188.82,2.66]
[1760997741755,6.53881589,188.9,188.82,2.66]
[1760997741955,6.53881589,188.9,188.83,4.7655]
[1760997742160,2.69,188.9,188.83,7.4255]
[1760997742457,3.84927047,188.89,188.83,2.66]
[1760997742958,6.53927047,188.89,188.83,2.66]
[1760997743154,2.69,188.89,188.8,2.03939984]
[1760997743355,2.69,188.87,188.79,4.69939984]
[1760997743656,6.53938987,188.87,188.79,4.69939984]
[1760997743855,2.69,188.87,188.8,2.66]
[1760997744160,3.84945547,188.88,188.8,2.66]
[1760997744361,4.72939984,188.89,188.8,2.66]
[1760997744566,3.84980697,188.88,188.8,2.66]
[1760997744860,4.72939984,188.89,188.8,2.66]
[1760997745061,3.84980818,188.88,188.8,2.66]
[1760997745261,2.69,188.87,188.8,2.66]
[1760997745460,96.64875001,189.12,188.75,2.03939984]
[1760997745461,2.69,188.84,188.75,2.03939984]
[1760997745663,2.69,188.82,188.73,4.69939984]